fUST/lending_fUST_20240402
["ID","MTS","AMOUNT","RATE_DAILY","PERIOD"]
[321261586,1712034648026,-1000.0,0.000399,2]
[321261588,1712034648035,-11606.18030125,0.00039958,5]
[321261590,1712034648044,-340.9342671,0.00039998,4]
[321261592,1712034648054,-564.17961843,0.00039998,4]
[321261594,1712034648063,-1768.1773494,0.00039998,4]
[321261596,1712034648072,-1480.0648148,0.00039998,4]
[321261598,1712034648081,-2098.57911359,0.00039999,4]
[321261600,1712034648090,-364.51738205,0.0004,30]
[321261602,1712034648099,-55357.20962985,0.0004,2]
[321261604,1712034648108,-170.511012,0.0004,2]
[321261606,1712034648116,-1423.0,0.0004,2]
[321261608,1712034648126,-166.800053,0.0004,2]
[321261610,1712034648135,-5000.0,0.0004,2]
[321261612,1712034648143,-500.0,0.0004,2]
[321261614,1712034648152,-170.178358,0.0004,2]
[321261616,1712034648162,-155.27083777,0.0004,4]
[321261618,1712034648171,-10790.66988248,0.0004013,2]
[321261620,1712034648180,-783.0,0.00040237,5]
[321261622,1712034648189,-783.0,0.00040237,3]
[321261624,1712034648198,-379.58877878,0.00040271,4]
[321261626,1712034648208,-155.02325752,0.00040272,4]
[321261628,1712034648217,-649.0,0.000404,30]
[321261630,1712034648226,-500.0,0.000405,2]
[321261632,1712034648235,-202.404201,0.00040548,2]
[321261634,1712034648244,-164.59432849,0.00040684,3]
[321261636,1712034648253,-343.65521084,0.0004069,2]
[321262147,1712034653297,213.63913275,0.000325,4]
[321266050,1712034815533,364.51738205,0.000352,22]
[321266053,1712034967803,1600.0,0.0003,2]
[321266087,1712035754482,807.651669,0.0003624,120]
[321266201,1712035838631,-155.04887456,0.000331,2]
[321266202,1712035838641,-212.818913,0.0003624,2]
[321266203,1712035838651,-400.0,0.00036453,2]
[321266204,1712035838660,-400.0,0.00036453,2]
[321266205,1712035838670,-1178.23516717,0.00036454,2]
[321266228,1712035843619,-23721.76483283,0.00036454,2]
[321266230,1712035843628,-506.0,0.00036899,2]
[321266231,1712035843637,-7894.20135725,0.00037,5]
[321266232,1712035843658,-1267.58388308,0.00037,5]
[321266235,1712035847808,-2444.39506092,0.00037,5]
[321266237,1712035847817,-251.07727237,0.0003753,15]
[321266240,1712035847828,-26714.8983,0.00037531,30]
[321266242,1712035847838,-220.78546596,0.00037592,2]
[321266249,1712035847921,-155.04887456,0.000381,2]
[321266251,1712035847930,-220.78546593,0.00038443,2]
[321266253,1712035847940,-560.0,0.00039026,3]
[321266255,1712035847949,-560.0,0.00039026,5]
[321266257,1712035847959,-220.78546593,0.00039294,2]
[321266259,1712035847968,-178.500466,0.00039312,2]
[321266262,1712035847977,-167.383137,0.0004,2]
[321266264,1712035847986,-170.607753,0.0004,2]
[321266267,1712035847995,-364.51738205,0.0004,30]
[321266270,1712035848004,-220.78546593,0.00040145,2]
[321266274,1712035848014,-153.0,0.00040548,2]
[321266277,1712035848023,-153.0,0.00040548,2]
[321266278,1712035848032,-266.3824956,0.00040548,2]
[321266279,1712035848042,-153.0,0.00040548,2]
[321266280,1712035848050,-153.0,0.00040548,2]
[321266281,1712035848059,-153.0,0.00040548,2]
[321266282,1712035848069,-306.0,0.00040548,2]
[321266283,1712035848078,-153.0,0.00040548,2]
[321266284,1712035848086,-153.0,0.00040548,2]
[321266285,1712035848096,-661.11106147,0.0004069,2]
[321266286,1712035848106,-12843.41254268,0.0004075,2]
[321266287,1712035848116,-236.388,0.0004089,2]
[321266288,1712035848125,-1000.0,0.00040995,2]
[321266289,1712035848134,-220.78546593,0.00040996,2]
[321266290,1712035848144,-292.75996933,0.00040999,2]
[321266293,1712035848508,-207.24003067,0.00040999,2]
[321266294,1712035848517,-3145.56029431,0.00041,2]
[321266295,1712035848527,-429.53920184,0.00041,90]
[321266296,1712035848537,-5618.0,0.00041,30]
[321266297,1712035848547,-500.0,0.00041,2]
[321266298,1712035848556,-4449.75126169,0.00041071,2]
[321266299,1712035848565,-679.66620274,0.00041093,2]
[321266300,1712035848575,-586.84740499,0.00041093,4]
[321266301,1712035848584,-2002.63249005,0.00041093,4]
[321266302,1712035848593,-624.49222766,0.00041093,4]
[321266303,1712035848602,-277.27711144,0.00041093,4]
[321266304,1712035848613,-240.86518521,0.00041093,4]
[321266305,1712035848622,-323.78353088,0.00041093,4]
[321266306,1712035848632,-309.6903097,0.00041093,4]
[321266307,1712035848642,-1052.5425936,0.00041093,4]
[321266308,1712035848652,-291.46484964,0.00041093,4]
[321266309,1712035848661,-633.88616537,0.00041093,4]
[321266310,1712035848671,-1163.45842756,0.00041093,4]
[321266311,1712035848680,-193.20616723,0.00041093,120]
[321266312,1712035848690,-409.09982117,0.00041093,4]
[321266313,1712035848700,-395.27001814,0.00041093,4]
[321266314,1712035848710,-288.6534764,0.00041093,4]
[321266315,1712035848720,-887.93898208,0.00041093,4]
[321266316,1712035848730,-744.83176225,0.00041093,4]
[321266317,1712035848740,-155.01555651,0.00041093,4]
[321266318,1712035848750,-712.00517737,0.00041093,4]
[321266319,1712035848759,-155.08950286,0.00041093,4]
[321266320,1712035848768,-309.89153874,0.00041093,4]
[321266321,1712035848777,-523.70973759,0.00041093,4]
[321266322,1712035848787,-922.46799143,0.00041093,4]
[321266323,1712035848797,-155.33653315,0.00041093,4]
[321266324,1712035848806,-687.7695842,0.00041093,2]
[321266325,1712035848816,-2073.55846832,0.00041094,4]
[321266326,1712035848825,-463.70000041,0.00041094,4]
[321266327,1712035848835,-651.57260754,0.00041094,4]
[321266328,1712035848846,-155.24477923,0.00041094,2]
[321266329,1712035848855,-443.95428618,0.00041094,4]
[321266330,1712035848865,-185.78774787,0.00041094,4]
[321266331,1712035848876,-322.55333016,0.00041094,4]
[321266332,1712035848885,-849.42491448,0.00041094,4]
[321266333,1712035848894,-155.22828165,0.00041094,4]
[321266334,1712035848904,-533.60060641,0.00041094,4]
[321266335,1712035848912,-1162.51872027,0.00041094,4]
[321266336,1712035848921,-500.0,0.00041095,6]
[321266337,1712035848930,-189.54384817,0.00041095,4]
[321266338,1712035848941,-3398.49568095,0.00041095,4]
[321266339,1712035848951,-156.66763538,0.00041095,4]
[321266340,1712035848961,-200.70223857,0.00041095,2]
[321266341,1712035848972,-8085.79,0.00041095,6]
[321266342,1712035848981,-8085.79,0.00041095,6]
[321266343,1712035848990,-8085.79,0.00041095,6]
[321266344,1712035848999,-8085.79,0.00041095,6]
[321266345,1712035849009,-8085.79,0.00041095,6]
[321266346,1712035849019,-8085.79,0.00041095,6]
[321266347,1712035849029,-151.0,0.00041095,2]
[321266348,1712035849039,-166.666666,0.00041096,2]
[321266349,1712035849049,-1230.0472404,0.00041096,7]
[321266350,1712035849058,-500.0,0.00041096,31]
[321266351,1712035849068,-500.0,0.00041096,31]
[321266352,1712035849080,-500.0,0.00041096,31]
[321266353,1712035849090,-500.0,0.00041096,31]
[321266354,1712035849101,-500.0,0.00041096,31]
[321266355,1712035849113,-254.2684191,0.00041096,31]
[321266356,1712035849124,-500.0,0.00041096,31]
[321266357,1712035849136,-500.0,0.00041096,31]
[321266358,1712035849146,-500.0,0.00041096,31]
[321266359,1712035849154,-500.0,0.00041096,31]
[321266360,1712035849163,-576.17401904,0.00041096,31]
[321266361,1712035849172,-576.17401904,0.00041096,31]
[321266362,1712035849181,-576.17401904,0.00041096,31]
[321266363,1712035849191,-576.17401904,0.00041096,31]
[321266364,1712035849204,-576.17401904,0.00041096,31]
[321266365,1712035849216,-576.17401904,0.00041096,31]
[321266366,1712035849225,-576.17401904,0.00041096,31]
[321266367,1712035849235,-576.17401904,0.00041096,31]
[321266368,1712035849248,-576.17401904,0.00041096,31]
[321266369,1712035849259,-576.17401904,0.00041096,31]
[321266370,1712035849270,-576.17401904,0.00041096,31]
[321266371,1712035849281,-576.17401904,0.00041096,31]
[321266372,1712035849293,-576.17401904,0.00041096,31]
[321266373,1712035849357,-576.17401904,0.00041096,31]
[321266374,1712035849366,-576.17401904,0.00041096,31]
[321266375,1712035849377,-576.17401904,0.00041096,31]
[321266376,1712035849386,-576.17401904,0.00041096,31]
[321266377,1712035849396,-576.17401904,0.00041096,31]
[321266378,1712035849406,-576.17401904,0.00041096,31]
[321266379,1712035849415,-576.17401904,0.00041096,31]
[321266380,1712035849425,-576.17401904,0.00041096,31]
[321266381,1712035849435,-576.17401904,0.00041096,31]
[321266382,1712035849444,-576.17401904,0.00041096,31]
[321266383,1712035849454,-576.17401904,0.00041096,31]
[321266384,1712035849464,-576.17401903,0.00041096,31]
[321266385,1712035849473,-576.17401904,0.00041096,31]
[321266386,1712035849483,-576.17401904,0.00041096,31]
[321266387,1712035849493,-576.17401904,0.00041096,31]
[321266388,1712035849502,-576.17401904,0.00041096,31]
[321266389,1712035849512,-576.17401904,0.00041096,31]
[321266390,1712035849521,-576.17401904,0.00041096,31]
[321266391,1712035849531,-576.17401904,0.00041096,31]
[321266392,1712035849540,-576.17401904,0.00041096,31]
[321266393,1712035849550,-576.17401904,0.00041096,31]
[321266394,1712035849559,-576.17401904,0.00041096,31]
[321266395,1712035849569,-576.17401904,0.00041096,31]
[321266396,1712035849578,-576.17401904,0.00041096,31]
[321266397,1712035849588,-576.17401904,0.00041096,31]
[321266398,1712035849597,-576.17401904,0.00041096,31]
[321266399,1712035849607,-576.17401904,0.00041096,31]
[321266400,1712035849616,-576.17401904,0.00041096,31]
[321266401,1712035849625,-576.17401904,0.00041096,31]
[321266402,1712035849634,-576.17401904,0.00041096,31]
[321266403,1712035849643,-576.17401904,0.00041096,31]
[321266404,1712035849653,-576.17401904,0.00041096,31]
[321266405,1712035849663,-576.17401904,0.00041096,31]
[321266406,1712035849672,-576.17401904,0.00041096,31]
[321266407,1712035849681,-576.17401904,0.00041096,31]
[321266408,1712035849690,-576.17401904,0.00041096,31]
[321266409,1712035849700,-576.17401904,0.00041096,31]
[321266410,1712035849709,-576.17401904,0.00041096,31]
[321266411,1712035849718,-576.17401904,0.00041096,31]
[321266412,1712035849729,-576.17401904,0.00041096,31]
[321266413,1712035849739,-576.17401904,0.00041096,31]
[321266414,1712035849748,-576.17401904,0.00041096,31]
[321266415,1712035849759,-576.17401904,0.00041096,31]
[321266416,1712035849767,-576.17401904,0.00041096,31]
[321266417,1712035849776,-2124.11212348,0.00041096,31]
[321266418,1712035849785,-2124.11212348,0.00041096,31]
[321266419,1712035849794,-738.78435755,0.00041096,31]
[321266427,1712036516301,10000.0,0.000325,2]
[321266428,1712036527416,5200.39829897,0.000325,2]
[321266429,1712036527441,4799.60170103,0.000325,2]
[321266430,1712036538933,10000.0,0.00033977,30]
[321266432,1712036595820,-605.0,0.00038416,120]
[321266465,1712036821042,421.27469982,0.00031877,2]
[321266473,1712036943960,454.488751,0.00035441,120]
[321266609,1712037038496,-252.90767751,0.00032999,2]
[321266610,1712037038505,-110.23827345,0.00033,2]
[321266627,1712037043472,-282.1869697,0.00033,2]
[321266628,1712037043483,-2619.0,0.00035,2]
[321266629,1712037043493,-163.8223006,0.00035441,2]
[321266630,1712037043503,-1977.08516748,0.00036139,2]
[321266631,1712037043513,-155.71077862,0.0003624,2]
[321266632,1712037043523,-400.0,0.00036499,2]
[321266633,1712037043534,-400.0,0.00036499,2]
[321266634,1712037043643,-648.95015547,0.000365,7]
[321266635,1712037043666,-781.03122147,0.000365,7]
[321266674,1712037387910,3788.48610539,0.0003,2]
[321266675,1712037407627,340.866563,0.00036188,120]
[321266679,1712037514911,-280.84979988,0.00034039,2]
[321266680,1712037514955,-721.90725782,0.000364,2]
[321266744,1712038233261,-260.40961407,0.000343,2]
[321266745,1712038233271,-4906.44308869,0.00036399,4]
[321266746,1712038233280,-936.40585157,0.000364,2]
[321266747,1712038233290,-1045.0271767,0.000364,4]
[321266748,1712038233300,-350.0,0.000364,2]
[321266749,1712038233309,-161.56321522,0.000364,2]
[321266750,1712038233318,-400.0,0.00036499,2]
[321266752,1712038233328,-400.0,0.00036499,2]
[321266754,1712038233337,-8570.01862306,0.000365,7]
[321266756,1712038233347,-191.16053866,0.00036608,2]
[321266758,1712038233356,-24900.0,0.00036705,2]
[321266759,1712038233366,-255.649922,0.00036708,120]
[321266760,1712038233375,-159.3337253,0.00037654,8]
[321266761,1712038233384,-169.731808,0.00037854,2]
[321266762,1712038233394,-178.500466,0.00038309,2]
[321266763,1712038233404,-500.0,0.00038377,2]
[321266764,1712038233413,-11606.18030125,0.00038378,5]
[321266765,1712038233422,-500.0,0.00038432,2]
[321266766,1712038233431,-306.0,0.00038904,2]
[321266767,1712038233440,-525.65900156,0.00039074,3]
[321266943,1712038240704,-34.34099844,0.00039074,3]
[321266945,1712038240712,-560.0,0.00039074,5]
[321266947,1712038240721,-306.0,0.00039181,2]
[321266949,1712038240731,-153.0,0.00039191,2]
[321266951,1712038240740,-153.0,0.00039192,2]
[321266953,1712038240749,-260.40961407,0.000393,2]
[321266955,1712038240759,-306.0,0.00039456,2]
[321266957,1712038240769,-153.0,0.00039589,2]
[321266959,1712038240777,-153.0,0.00039589,2]
[321266961,1712038240787,-306.0,0.00039589,2]
[321266963,1712038240796,-2999.0,0.0003999,2]
[321266965,1712038240806,-1868.79749241,0.00039999,2]
[321266967,1712038240815,-167.28733665,0.0004,4]
[321266969,1712038240824,-159.989303,0.0004,2]
[321266971,1712038240833,-166.800053,0.0004,2]
[321266979,1712038240904,-2573.13472426,0.0004,2]
[321266981,1712038240915,-1169.57769885,0.0004,2]
[321266983,1712038240925,-170.2194,0.0004,2]
[321266985,1712038240934,-167.383137,0.0004,2]
[321266987,1712038240943,-1519.14336544,0.0004013,2]
[321268497,1712038390881,239.945483,0.00034515,120]
[321268503,1712038907866,179.959112,0.00033059,120]
[321268505,1712039039918,178.500466,0.00031744,2]
[321268506,1712039075209,352.41986652,0.00031744,2]
[321268507,1712039081485,421.58506253,0.00031744,2]
[321268508,1712039091231,352.41986652,0.00031744,2]
[321268509,1712039094527,237.00515346,0.00031744,2]
[321268510,1712039111319,352.41986652,0.00031744,2]
[321268511,1712039133223,352.41986652,0.00031744,2]
[321268516,1712039155224,403.69972522,0.00031744,2]
[321268517,1712039205701,428.899254,0.00031971,2]
[321268518,1712039218868,12911.26836647,0.00031744,4]
[321268519,1712039218891,5569.8162209,0.00031744,4]
[321268520,1712039231622,1028.9976803,0.00029644,2]
[321268530,1712039256092,353.30282093,0.00031744,4]
[321268531,1712039268078,353.30282093,0.00031744,4]
[321268532,1712039286080,353.30282093,0.00031744,4]
[321268533,1712039310090,353.30282093,0.00031744,4]
[321268534,1712039326084,280.45551559,0.00031744,4]
[321268563,1712039419250,16707.51929949,0.00031956,2]
[321268564,1712039419292,8192.48070051,0.00031956,2]
[321268565,1712039431463,179.959112,0.00031941,120]
[321268607,1712039432850,-252.90767751,0.00032902,2]
[321268608,1712039432860,-721.20366202,0.00032902,4]
[321268609,1712039432869,-1255.09383648,0.00032903,4]
[321268610,1712039432879,-3458.39578796,0.00032904,4]
[321268611,1712039432888,-155.02790502,0.00032904,4]
[321268612,1712039432898,-400.0,0.00032906,2]
[321268613,1712039432907,-400.0,0.00032906,2]
[321268614,1712039432917,-187.57421347,0.00032919,2]
[321268615,1712039432926,-161.52605772,0.00032919,6]
[321268616,1712039432936,-2413.86130523,0.00033,2]
[321268617,1712039433088,-253.56689601,0.00033,2]
[321268733,1712039443952,-156.92445236,0.00032999,7]
[321268734,1712039443961,-182.09937137,0.00032999,7]
[321268735,1712039443973,-336.68996159,0.00032999,7]
[321268736,1712039443984,-163.31003841,0.00032999,7]
[321268737,1712039443993,-292.26910933,0.00032999,7]
[321268738,1712039444003,-142.61842861,0.00033,2]
[321268739,1712039444042,-11527.69187708,0.00033,2]
[321268740,1712039444057,-9940.82121349,0.00033,2]
[321268741,1712039444273,-5900.09510181,0.00033,2]
[321268785,1712039458795,210.00058535,0.00030821,4]
[321268796,1712039532708,994.27768305,0.000309,2]
[321268799,1712039576240,566.4751979,0.00032112,2]
[321268801,1712039614753,171.2953223,0.00031662,2]
[321268806,1712039651368,155.02790502,0.00028901,2]
[321268807,1712039657290,249.09337683,0.00032112,2]
[321268808,1712039659543,481.66170174,0.00032112,2]
[321268809,1712039669306,240.57294305,0.00028901,2]
[321268814,1712039745542,313.7797394,0.00028901,2]
[321268815,1712039749128,155.17913138,0.00028901,2]
[321268816,1712039753153,155.02790502,0.00028901,2]
[321268817,1712039754796,1313.7436245,0.00028901,2]
[321268818,1712039761545,167.88196234,0.00028901,2]
[321268819,1712039761999,155.52318784,0.00028901,2]
[321268820,1712039775082,155.62987249,0.00028901,2]
[321268821,1712039914107,172.886715,0.00030955,120]
[321268822,1712039914298,172.886715,0.00036114,120]
[321268823,1712040014156,-2109.94118566,0.00030847,2]
[321268824,1712040014182,-400.0,0.00030848,2]
[321268825,1712040014203,-400.0,0.00030848,2]
[321268826,1712040014224,-7753.26037368,0.00030848,4]
[321268827,1712040014245,-20209.79844066,0.00030849,2]
[321268828,1712040079040,-3458.39578796,0.00030847,4]
[321268829,1712040079061,-219.66899164,0.00030847,4]
[321268830,1712040079082,-400.0,0.00030848,2]
[321268831,1712040079103,-400.0,0.00030848,2]
[321268832,1712040079126,-867.10470831,0.00030848,4]
[321268833,1712040079147,-4690.20155934,0.00030849,2]
[321268834,1712040079171,-1.62895275,0.00030896,2]
[321268843,1712040395128,172.886715,0.00030891,120]
[321268851,1712040436397,1303.73549315,0.00028749,2]
[321268942,1712040638739,-1053.80850463,0.00030934,4]
[321268943,1712040638753,-1534.87334904,0.00030934,4]
[321268944,1712040638762,-400.0,0.00030935,2]
[321268945,1712040638771,-400.0,0.00030935,2]
[321268946,1712040638781,-500.0,0.00030935,2]
[321268947,1712040638791,-500.0,0.00030935,2]
[321268948,1712040638800,-492.76920992,0.00030935,2]
[321268949,1712040638809,-8496.88707437,0.00030936,2]
[321268950,1712040638821,-6975.81108818,0.00030936,2]
[321268951,1712040638846,-6711.50417743,0.00030936,2]
[321268967,1712040640050,-2715.79766002,0.00030936,2]
[321268968,1712040640059,-1936.2208032,0.0003095,2]
[321268969,1712040640068,-1041.1790399,0.00030953,2]
[321268970,1712040640078,-1011.20249688,0.00030971,2]
[321269049,1712040648421,-1308.79750312,0.00030971,2]
[321269050,1712040648431,-200.0,0.0003108,2]
[321269051,1712040648440,-214.449627,0.00031155,2]
[321269052,1712040648449,-250.0,0.00031157,2]
[321269053,1712040648458,-398.0,0.00031546,3]
[321269054,1712040648467,-817.44668773,0.00031549,2]
[321269055,1712040648476,-3507.95965065,0.00032529,4]
[321269056,1712040648485,-1152.85928992,0.00032805,2]
[321269057,1712040648494,-187.57421347,0.000329,2]
[321269058,1712040648505,-22663.11327689,0.00033,2]
[321269059,1712040648514,-162.35798589,0.00033,4]
[321269060,1712040648523,-560.0,0.00033309,2]
[321269061,1712040648532,-560.0,0.00033309,2]
[321269062,1712040648542,-1303.73549315,0.00033749,2]
[321269063,1712040648556,-463.70000041,0.00034,4]
[321269064,1712040648566,-26252.11266039,0.00035,2]
[321269065,1712040648576,-783.0,0.00035865,2]
[321269066,1712040648585,-783.0,0.00035865,2]
[321269067,1712040648596,-153.0,0.00037263,2]
[321269068,1712040648605,-153.0,0.00037263,2]
[321269069,1712040648615,-876.00625254,0.00037755,2]
[321269070,1712040648624,-500.0,0.00038356,2]
[321269071,1712040648634,-609.3433477,0.00038356,2]
[321269072,1712040648646,-613.1079328,0.0003841,2]
[321269073,1712040648655,-1097.0,0.00038618,3]
[321269074,1712040648665,-1089.0,0.00038618,5]
[321269075,1712040648674,-800.0,0.000389,2]
[321269076,1712040648683,-9142.691514,0.00039,2]
[321269077,1712040648693,-151.0,0.00039,2]
[321269078,1712040648702,-151.937435,0.00039,2]
[321269079,1712040648711,-151.0,0.00039,2]
[321269080,1712040648720,-151.0,0.00039,2]
[321269081,1712040648729,-151.0,0.00039,2]
[321269082,1712040648738,-151.767103,0.00039,2]
[321269083,1712040648747,-1848.76042208,0.00039035,5]
[321269084,1712040648925,-3419.57614541,0.00039035,5]
[321269108,1712040783019,-310.10836858,0.00033,4]
[321269109,1712040783039,-463.70000041,0.00034,4]
[321269110,1712040783059,-165.86324555,0.00034998,7]
[321269111,1712040783080,-400.0,0.00034998,2]
[321269112,1712040783100,-2080.32838546,0.00034999,4]
[321269115,1712040823251,168.07948965,0.0003,2]
[321269116,1712040828658,235.37058445,0.00021,2]
[321269117,1712040828686,17876.04900978,0.0002,2]
[321269118,1712040828724,7594.80204397,0.0002,2]
[321269119,1712040839770,23767.21637167,0.00015498,2]
[321269120,1712040852504,410.44365564,0.000195,2]
[321269124,1712040855353,-428.7980639,0.00029,2]
[321269125,1712040855403,20713.05518693,0.0002,2]
[321269126,1712040855459,-8.7509809,0.00029,2]
[321269127,1712040855691,420.047083,0.000125,2]
[321269128,1712040855727,1902.64527361,0.000125,2]
[321269129,1712040865846,792.93811988,0.000176,2]
[321269130,1712040870665,272.11926965,0.0001,2]
[321269132,1712040874193,7359.38575588,0.00018,2]
[321269133,1712040874527,5065.82877028,0.000275,2]
[321269134,1712040875189,-12000.0,0.0002877,2]
[321269135,1712040875303,-12000.0,0.0002877,2]
[321269136,1712040875414,-12000.0,0.0002877,2]
[321269137,1712040875473,25000.0,0.0003,7]
[321269138,1712040875523,-12000.0,0.0002877,2]
[321269139,1712040875642,-12000.0,0.0002877,2]
[321269140,1712040875755,-240.3759336,0.0003,7]
[321269141,1712040875804,-12000.0,0.0002877,2]
[321269143,1712040877099,2544.39782332,0.0002,2]
[321269144,1712040878726,172.886715,0.00033931,120]
[321269146,1712040917078,-300.0,0.00028769,2]
[321269147,1712040917099,-21187.0,0.0002877,2]
[321269150,1712040939614,1492.14929504,0.000275,2]
[321269151,1712040949206,752.59282409,0.000275,2]
[321269152,1712041003101,-1263.81160836,0.00034728,12]
[321269153,1712041004584,-1926.71892252,0.00028768,2]
[321269154,1712041004604,-180.64591105,0.00028768,2]
[321269155,1712041004623,-782.21993348,0.00028769,2]
[321269156,1712041004648,-923.07219606,0.00028769,2]
[321269157,1712041004748,-281.74620294,0.00028769,2]
[321269158,1712041004768,-155.0418613,0.00028769,2]
[321269159,1712041004788,-28.85329842,0.0002877,2]
[321269160,1712041004809,-254.70167423,0.0002877,2]
[321269161,1712041005979,-4.9056313,0.0003,7]
[321269162,1712041079805,-158.18477113,0.00028765,2]
[321269163,1712041079835,-144.81522887,0.00028766,2]
[321269164,1712041147434,-2.43783824,0.0002877,2]
[321269165,1712041219833,-155.04341216,0.0003289,4]
[321269166,1712041219855,-155.04341216,0.00032891,4]
[321269167,1712041219877,-378.5457621,0.00032892,4]
[321269168,1712041219900,-155.04341216,0.00032893,4]
[321269169,1712041219923,-3507.95965165,0.00032893,4]
[321269170,1712041219945,-1240.21216361,0.00032893,4]
[321269171,1712041219967,-2588.68185367,0.00032894,4]
[321269172,1712041250817,-1240.21216361,0.00033243,4]
[321269173,1712041250842,-63817.84138105,0.00033969,4]
[321269175,1712041355580,531.25184,0.00033565,120]
[321269318,1712041818147,398.43888,0.00032541,120]
[321269373,1712041833548,-923.07219606,0.00029999,2]
[321269376,1712041833563,-300.0,0.00029999,2]
[321269378,1712041833577,-59128.50365443,0.0003,4]
[321269381,1712041833594,-1433.98205172,0.0003,4]
[321269384,1712041833610,-6684.0,0.0003,4]
[321269454,1712041838733,-156.92445236,0.00029999,2]
[321269455,1712041838742,-182.09937137,0.00029999,2]
[321269456,1712041838752,-336.68996159,0.00029999,2]
[321269457,1712041838761,-2954.48419493,0.0003,4]
[321269458,1712041838773,-1910.40822086,0.0003,4]
[321269459,1712041838795,-28552.92237455,0.0003,4]
[321269460,1712041838805,-1420.70146965,0.00031869,2]
[321269461,1712041838814,-2704.03445613,0.00031889,2]
[321269463,1712041838826,-6703.2,0.00031889,2]
[321269465,1712041838856,-408.88185638,0.00031889,2]
[321269603,1712041843935,-10192.17194766,0.00031889,2]
[321269604,1712041843949,-4891.71173983,0.00031889,2]
[321269605,1712041843960,-420.0,0.00032332,2]
[321269606,1712041843970,-226.479739,0.00032541,2]
[321269607,1712041843981,-207.25617006,0.000328,2]
[321269608,1712041843990,-181.4740109,0.00033244,2]
[321269609,1712041844000,-207.25617003,0.00033824,2]
[321269610,1712041844010,-16.68860212,0.000339,2]
[321269611,1712041844040,-134.31139788,0.000339,2]
[321269612,1712041844052,-587.0,0.00034847,2]
[321269613,1712041844063,-207.25617003,0.00034849,2]
[321269614,1712041844072,-119.90234131,0.00034993,4]
[321269640,1712041846260,-154.03597925,0.00034993,4]
[321269647,1712041994342,-155.07288426,0.00031868,4]
[321269648,1712041994363,-564.92711574,0.00031869,2]
[321269654,1712042258872,-774.0,0.00029789,2]
[321269655,1712042392244,-50.75709341,0.00029789,2]
[321269656,1712042392269,-300.0,0.00029999,2]
[321269657,1712042392289,-300.0,0.00029999,2]
[321269658,1712042392309,-1429.24290659,0.0003,3]
[321269659,1712042439119,298.82916,0.0003233,120]
[321269661,1712042668966,1300.0,0.000367,56]
[321269667,1712042946252,322.121355,0.00030137,120]
[321269668,1712042946464,322.121355,0.0003516,120]
[321269677,1712042987540,20000.0,0.000367,56]
[321269680,1712043023451,8000.0,0.000367,56]
[321269690,1712043033462,-185.17273563,0.00028861,2]
[321269691,1712043033471,-502.69485365,0.00028862,2]
[321269692,1712043033481,-5555.41132495,0.00028862,2]
[321269693,1712043033490,-1482.50817465,0.00028863,2]
[321269694,1712043033499,-300.0,0.00028865,2]
[321269695,1712043033508,-3275.5010913,0.00028866,2]
[321269696,1712043033517,-300.0,0.00029804,2]
[321269697,1712043033527,-165.86324555,0.00029804,2]
[321269698,1712043033538,-466.617619,0.00029805,2]
[321269699,1712043033547,-15266.70624927,0.00029805,2]
[321269711,1712043038402,-9633.29375073,0.00029805,2]
[321269712,1712043038411,-5144.22529396,0.00029999,2]
[321269786,1712043039605,-2833.52056793,0.00029999,2]
[321269788,1712043039614,-12554.35472605,0.0003,3]
[321269790,1712043039625,-5417.0911756,0.0003,3]
[321269792,1712043039635,-666.51260914,0.00031769,2]
[321269793,1712043039644,-420.0,0.00032129,2]
[321269795,1712043039654,-310.10836858,0.00033,4]
[321269797,1712043039663,-883.86419013,0.000346,2]
[321269799,1712043039672,-7478.14,0.000346,5]
[321269801,1712043039681,-587.0,0.00034635,2]